fUSD/lending_fUSD_20240215
["ID","MTS","AMOUNT","RATE_DAILY","PERIOD"]
[314106458,1707983448174,-500.0,0.0004159,2]
[314106459,1707983448184,-500.0,0.0004159,2]
[314106460,1707983448197,-500.0,0.0004159,2]
[314106461,1707983448207,-500.0,0.0004159,2]
[314106462,1707983448218,-500.0,0.0004159,2]
[314106463,1707983448228,-500.0,0.0004159,2]
[314106464,1707983448239,-500.0,0.0004159,2]
[314106465,1707983448249,-500.0,0.0004159,2]
[314106466,1707983448259,-500.0,0.0004159,2]
[314106467,1707983448268,-500.0,0.0004159,2]
[314106468,1707983448277,-500.0,0.0004159,2]
[314106469,1707983448286,-500.0,0.0004159,2]
[314106470,1707983448297,-500.0,0.0004159,2]
[314106471,1707983448307,-500.0,0.0004159,2]
[314106472,1707983448317,-500.0,0.0004159,2]
[314106473,1707983448326,-500.0,0.0004159,2]
[314106474,1707983448431,-500.0,0.0004159,2]
[314106475,1707983448443,-151.0,0.0004159,14]
[314106476,1707983448452,-500.0,0.00041599,30]
[314106477,1707983448462,-500.0,0.00041599,30]
[314106478,1707983448471,-217488.0149736,0.000416,6]
[314106479,1707983448480,-151.0,0.000416,14]
[314106480,1707983448490,-151.0,0.000416,14]
[314106481,1707983448499,-151.0,0.000416,14]
[314106482,1707983448509,-151.0,0.000416,14]
[314106483,1707983448518,-178.588131,0.000416,14]
[314106484,1707983448527,-151.0,0.000416,14]
[314106485,1707983448537,-151.0,0.000416,14]
[314106486,1707983448547,-151.0,0.000416,14]
[314106487,1707983448557,-868.80600414,0.00041608,15]
[314106488,1707983448567,-295.0,0.00041632,14]
[314106489,1707983448576,-151.0,0.00041632,14]
[314106490,1707983448585,-151.0,0.00041632,14]
[314106491,1707983448595,-151.0,0.00041632,14]
[314106492,1707983448604,-2288.80297242,0.00041632,2]
[314106493,1707983448614,-621.53,0.00041643,30]
[314106494,1707983448623,-600.0,0.00041643,30]
[314106495,1707983448632,-550.0,0.00041643,7]
[314106496,1707983448642,-1731.18,0.00041643,30]
[314106497,1707983448651,-1297.96,0.00041643,30]
[314106498,1707983448660,-200.0,0.00041643,12]
[314106499,1707983448669,-1283.49,0.00041643,30]
[314106500,1707983448678,-379.22778145,0.00041643,30]
[314106501,1707983448687,-841.47,0.00041643,30]
[314106502,1707983448696,-500.0,0.00041643,30]
[314106503,1707983448705,-1500.0,0.00041649,2]
[314106504,1707983448714,-156.04193554,0.00041652,30]
[314106505,1707983448723,-156.04193554,0.00041671,30]
[314106506,1707983448732,-171.39713619,0.00041679,4]
[314106507,1707983448742,-150.0,0.0004168,2]
[314106508,1707983448751,-552.79640843,0.00041688,5]
[314106509,1707983448760,-3878.0,0.000417,87]
[314106510,1707983448770,-150.0,0.000417,15]
[314106511,1707983448779,-169.653428,0.000417,15]
[314106512,1707983448788,-155.811276,0.00041711,30]
[314106513,1707983448797,-155.53,0.00041748,2]
[314106514,1707983448807,-155.861271,0.0004175,14]
[314106515,1707983448816,-500.0,0.0004175,30]
[314106516,1707983448825,-500.0,0.0004176,30]
[314106517,1707983448834,-1823.20738654,0.0004177,2]
[314106518,1707983448844,-199.4787502,0.00041789,30]
[314106519,1707983448853,-1000.0,0.0004179,2]
[314106520,1707983448862,-868.80600414,0.0004179,16]
[314106521,1707983448871,-500.0,0.0004179,30]
[314106522,1707983448881,-399.1925306,0.00041791,2]
[314106523,1707983448890,-7763.4214888,0.00041791,2]
[314106524,1707983448899,-386.31535355,0.00041791,2]
[314106525,1707983448908,-693.4920962,0.00041791,2]
[314106526,1707983448919,-159.53892364,0.00041792,30]
[314106527,1707983448927,-5000.0,0.00041799,2]
[314106528,1707983448936,-151.0,0.00041799,14]
[314106529,1707983448946,-151.0,0.00041799,14]
[314106530,1707983448955,-500.0,0.00041799,30]
[314106531,1707983448964,-500.0,0.00041799,30]
[314106532,1707983448973,-500.0,0.00041799,30]
[314106533,1707983448982,-500.0,0.00041799,30]
[314106534,1707983448991,-305.0805294,0.00041799,30]
[314106535,1707983449000,-170.21159463,0.000418,2]
[314106536,1707983449009,-681299.54281922,0.000418,30]
[314106537,1707983449019,-979.18,0.000418,18]
[314106538,1707983449028,-1143.59038223,0.000418,30]
[314106539,1707983449036,-2281.2438664,0.000418,30]
[314106540,1707983449046,-500.92131263,0.000418,15]
[314106541,1707983449054,-1554.44691389,0.000418,30]
[314106542,1707983449064,-2121.59,0.000418,15]
[314106543,1707983449072,-209.0,0.000418,2]
[314106544,1707983449082,-217.0,0.000418,2]
[314106545,1707983449092,-211.0,0.000418,2]
[314106546,1707983449103,-209.0,0.000418,2]
[314106547,1707983449112,-211.0,0.000418,2]
[314106548,1707983449121,-2663.30782146,0.000418,30]
[314106549,1707983449130,-1000.0,0.000418,15]
[314106550,1707983449140,-409.84471034,0.000418,15]
[314106551,1707983449149,-155.52,0.000418,4]
[314106552,1707983449158,-155.52,0.000418,4]
[314106553,1707983449167,-155.52,0.000418,4]
[314106554,1707983449175,-166.36,0.000418,4]
[314106555,1707983449185,-166.36,0.000418,4]
[314106556,1707983449195,-494.90158046,0.000418,30]
[314106557,1707983449204,-151.0,0.000418,14]
[314106558,1707983449213,-151.0,0.000418,14]
[314106559,1707983449222,-151.0,0.000418,14]
[314106560,1707983449231,-151.0,0.000418,14]
[314106561,1707983449240,-151.0,0.000418,14]
[314106562,1707983449250,-151.0,0.000418,14]
[314106563,1707983449259,-1115.0,0.0004182,20]
[314106564,1707983449268,-780.0,0.0004182,20]
[314106565,1707983449277,-150.0,0.00041837,60]
[314106566,1707983449286,-155.67934136,0.00041848,30]
[314106567,1707983449295,-585.95079425,0.00041884,30]
[314106568,1707983449304,-150.5,0.0004189,61]
[314106569,1707983449314,-150.5,0.0004189,61]
[314106570,1707983449323,-150.5,0.0004189,61]
[314106571,1707983449332,-150.5,0.0004189,61]
[314106572,1707983449341,-165.24115021,0.00041898,30]
[314106573,1707983449351,-150.5,0.000419,61]
[314106574,1707983449360,-150.5,0.000419,61]
[314106575,1707983449369,-150.5,0.000419,61]
[314106576,1707983449379,-261.5,0.000419,61]
[314106577,1707983449389,-150.5,0.000419,61]
[314106578,1707983449400,-168.56409583,0.000419,2]
[314106579,1707983449409,-150.5,0.0004191,61]
[314106580,1707983449419,-150.5,0.0004191,61]
[314106581,1707983449428,-150.5,0.0004191,61]
[314106582,1707983449437,-150.5,0.0004191,61]
[314106583,1707983449447,-295.0,0.0004191,30]
[314106584,1707983449456,-242.99,0.0004191,61]
[314106585,1707983449465,-150.5,0.0004191,61]
[314106586,1707983449474,-172.0,0.0004191,60]
[314106587,1707983449483,-150.5,0.0004191,61]
[314106588,1707983449493,-500.0,0.00041917,14]
[314106589,1707983449502,-621.53,0.00041917,30]
[314106590,1707983449511,-600.0,0.00041917,30]
[314106591,1707983449520,-550.0,0.00041917,7]
[314106592,1707983449530,-1731.18,0.00041917,30]
[314106593,1707983449539,-1297.96,0.00041917,30]
[314106594,1707983449548,-200.0,0.00041917,13]
[314106595,1707983449557,-1283.49,0.00041917,30]
[314106596,1707983449567,-841.47,0.00041917,30]
[314106597,1707983449576,-500.0,0.00041917,30]
[314106598,1707983449585,-159.53892364,0.00041938,30]
[314106599,1707983449594,-159.53892364,0.00041961,30]
[314106600,1707983449604,-158.0,0.0004197,61]
[314106601,1707983449613,-158.0,0.0004197,61]
[314106602,1707983449623,-642.0,0.0004197,61]
[314106603,1707983449632,-347.0,0.0004197,61]
[314106604,1707983449641,-642.0,0.0004197,61]
[314106605,1707983449650,-347.0,0.0004197,61]
[314106606,1707983449660,-204.06,0.0004197,61]
[314106607,1707983449668,-341.0,0.0004197,61]
[314106608,1707983449678,-341.0,0.0004197,61]
[314106609,1707983449688,-868.80600414,0.00041972,16]
[314106610,1707983449697,-158.0,0.0004198,61]
[314106611,1707983449706,-158.0,0.0004198,61]
[314106612,1707983449716,-212.02,0.0004198,61]
[314106613,1707983449725,-169.37,0.0004198,61]
[314106614,1707983449734,-165.72,0.0004198,61]
[314106615,1707983449744,-347.0,0.0004198,61]
[314106616,1707983449753,-642.0,0.0004198,61]
[314106617,1707983449762,-642.0,0.0004198,61]
[314106618,1707983449771,-347.0,0.0004198,61]
[314106619,1707983449780,-201.77,0.0004198,61]
[314106620,1707983449789,-341.0,0.0004198,61]
[314106621,1707983449798,-341.0,0.0004198,61]
[314106622,1707983449807,-200.0,0.00041987,7]
[314106623,1707983449816,-200.0,0.00041987,5]
[314106624,1707983449825,-200.0,0.00041987,5]
[314106625,1707983449834,-158.0,0.0004199,61]
[314106626,1707983449843,-158.0,0.0004199,61]
[314106627,1707983449852,-150.5,0.0004199,61]
[314106628,1707983449861,-150.5,0.0004199,61]
[314106629,1707983449870,-198.61,0.0004199,61]
[314106630,1707983449879,-220.14,0.0004199,61]
[314106631,1707983449887,-150.5,0.0004199,61]
[314106632,1707983449896,-158.63,0.0004199,61]
[314106633,1707983449906,-642.0,0.0004199,61]
[314106634,1707983449914,-347.0,0.0004199,61]
[314106635,1707983449924,-158.1,0.0004199,61]
[314106636,1707983449933,-160.05,0.0004199,61]
[314106637,1707983449943,-642.0,0.0004199,61]
[314106638,1707983449952,-347.0,0.0004199,61]
[314106639,1707983449960,-341.0,0.0004199,61]
[314106640,1707983449969,-341.0,0.0004199,61]
[314106641,1707983449978,-6883.59251734,0.0004199,15]
[314106642,1707983449987,-169.91,0.00041994,2]
[314106643,1707983449996,-100000.0,0.00042,32]
[314106644,1707983450005,-1556.94033384,0.00042,20]
[314106645,1707983450014,-436.0,0.00042,7]
[314106646,1707983450024,-735.29749678,0.00042,4]
[314106647,1707983450034,-10000.0,0.00042,10]
[314106648,1707983450043,-50000.0,0.00042,10]
[314106649,1707983450052,-50000.0,0.00042,10]
[314106650,1707983450061,-33834.05,0.00042,10]
[314106651,1707983450070,-10000.0,0.00042,10]
[314106652,1707983450078,-50000.0,0.00042,10]
[314106653,1707983450088,-792.93216417,0.00042,7]
[314106654,1707983450098,-964.78431969,0.00042,7]
[314106655,1707983450111,-1766.9433032,0.00042,2]
[314106656,1707983450120,-13010.82353648,0.00042,2]
[314106657,1707983450129,-151.78418111,0.00042,15]
[314106658,1707983450139,-120805.70905476,0.00042,120]
[314106659,1707983450149,-45950.0,0.00042,2]
[314106660,1707983450158,-1000.0,0.00042,30]
[314106661,1707983450167,-1500.0,0.00042,120]
[314106662,1707983450177,-1500.0,0.00042,120]
[314106663,1707983450186,-174.2708,0.00042,59]
[314106664,1707983450197,-36905.0,0.00042,30]
[314106665,1707983450206,-679.0,0.00042,14]
[314106666,1707983450216,-300.0,0.00042,38]
[314106667,1707983450225,-53433.59993014,0.00042,30]
[314106668,1707983450235,-205.18,0.00042,60]
[314106669,1707983450243,-836.57408446,0.00042,2]
[314106670,1707983450253,-500.0,0.00042,5]
[314106671,1707983450262,-204.72,0.00042,7]
[314106672,1707983450271,-653.0,0.00042,7]
[314106673,1707983450280,-673.22,0.00042,7]
[314106674,1707983450288,-335.48,0.00042,120]
[314106675,1707983450298,-370.96,0.00042,120]
[314106676,1707983450307,-70000.0,0.00042,5]
[314106677,1707983450316,-200.0,0.00042,49]
[314106678,1707983450326,-24000.0,0.00042,120]
[314106679,1707983450336,-200.0,0.00042,2]
[314106680,1707983450346,-951.51,0.00042,120]
[314106681,1707983450355,-151.0,0.00042,14]
[314106682,1707983450365,-331539.64611729,0.00042,30]
[314106683,1707983450374,-151.0,0.00042,14]
[314106684,1707983450383,-151.0,0.00042,14]
[314106685,1707983450393,-151.0,0.00042,14]
[314106686,1707983450402,-151.0,0.00042,14]
[314106687,1707983450412,-151.0,0.00042,14]
[314106688,1707983450421,-200.0,0.00042,2]
[314106689,1707983450431,-151.0,0.00042,14]
[314106690,1707983450440,-151.0,0.00042,14]
[314106691,1707983450450,-151.0,0.00042,14]
[314106692,1707983450460,-151.0,0.00042,14]
[314106693,1707983450470,-500.0,0.00042009,7]
[314106694,1707983450479,-196.1,0.00042045,2]
[314106695,1707983450489,-24000.0,0.0004206,120]
[314106696,1707983450498,-1000.0,0.00042064,5]
[314106697,1707983450507,-5000.0,0.00042073,5]
[314106698,1707983450517,-1753.18,0.00042079,2]
[314106699,1707983450624,-159.68625955,0.00042095,2]
[314106700,1707983450634,-386.04868652,0.0004211,2]
[314106701,1707983450644,-159.53892364,0.0004211,30]
[314106702,1707983450653,-24000.0,0.0004212,120]
[314106703,1707983450662,-159.53892364,0.00042139,30]
[314106704,1707983450672,-156.51795819,0.0004214,7]
[314106705,1707983450681,-156.51795819,0.0004214,7]
[314106706,1707983450691,-156.51795819,0.0004214,7]
[314106707,1707983450700,-156.51,0.0004214,7]
[314106708,1707983450710,-258.42,0.0004214,7]
[314106709,1707983450719,-203.98651485,0.0004214,7]
[314106710,1707983450728,-203.98,0.0004214,7]
[314106711,1707983450738,-166.55068802,0.0004214,7]
[314106712,1707983450748,-166.55068802,0.0004214,7]
[314106713,1707983450758,-166.55,0.0004214,7]
[314106714,1707983450767,-152.57034549,0.0004214,7]
[314106715,1707983450776,-152.57034549,0.0004214,7]
[314106716,1707983450785,-152.57,0.0004214,7]
[314106717,1707983450795,-868.80600414,0.00042154,16]
[314106718,1707983450805,-273.6,0.0004217,61]
[314106719,1707983450815,-3500.0,0.0004218,120]
[314106720,1707983450827,-6249.0809676,0.00042182,2]
[314106721,1707983450838,-693.4920962,0.00042182,2]
[314106722,1707983450849,-500.0,0.00042191,14]
[314106723,1707983450859,-621.53,0.00042191,30]
[314106724,1707983450869,-600.0,0.00042191,30]
[314106725,1707983450880,-550.0,0.00042191,7]
[314106726,1707983450890,-1731.18,0.00042191,30]
[314106727,1707983450901,-1297.96,0.00042191,30]
[314106728,1707983450910,-200.0,0.00042191,14]
[314106729,1707983450920,-1283.49,0.00042191,30]
[314106730,1707983450931,-841.47,0.00042191,30]
[314106731,1707983450943,-215.48000001,0.00042191,30]
[314106732,1707983450952,-150.5,0.000422,61]
[314106733,1707983450963,-1000.0,0.000422,2]
[314106734,1707983450974,-150.5,0.0004221,61]
[314106735,1707983450984,-150.5,0.0004221,61]
[314106736,1707983450994,-150.5,0.0004221,61]
[314106737,1707983451004,-399.1925306,0.00042211,2]
[314106738,1707983451015,-399.1925306,0.00042211,2]
[314106739,1707983451026,-399.1925306,0.00042211,2]
[314106740,1707983451036,-399.1925306,0.00042211,2]
[314106741,1707983451046,-4734.7404465,0.00042211,2]
[314106742,1707983451056,-3220.3999253,0.00042211,2]
[314106743,1707983451067,-1706.0594041,0.00042211,2]
[314106744,1707983451078,-693.4920962,0.00042211,2]
[314106745,1707983451090,-693.4920962,0.00042211,2]
[314106746,1707983451101,-693.4920962,0.00042211,2]
[314106747,1707983451112,-150.5,0.0004222,61]
[314106748,1707983451121,-222.44,0.0004222,61]
[314106749,1707983451131,-150.5,0.0004222,61]
[314106750,1707983451142,-150.5,0.0004222,61]
[314106751,1707983451153,-159.69045391,0.00042226,30]
[314106752,1707983451163,-1917.189441,0.0004223,30]
[314106753,1707983451173,-200.0,0.0004223,7]
[314106754,1707983451183,-200.0,0.0004223,7]
[314106755,1707983451196,-200.0,0.0004223,7]
[314106756,1707983451206,-1115.0,0.0004223,20]
[314106757,1707983451216,-780.0,0.0004223,20]
[314106758,1707983451226,-150.0,0.00042239,3]
[314106759,1707983451236,-150.0,0.00042239,3]
[314106760,1707983451247,-150.0,0.00042239,3]
[314106761,1707983451256,-500916.42537281,0.0004224,30]
[314106762,1707983451283,-4543.46497506,0.0004224,30]
[314106763,1707983451297,-605.85735968,0.0004224,30]
[314106764,1707983451322,-234.16699497,0.00040151,2]
[314106765,1707983451335,-833.01203947,0.0004224,30]
[314106766,1707983451347,-329.47464714,0.0004224,30]
[314106767,1707983451359,-624.5037373,0.0004224,30]
[314106768,1707983451371,-397.20681402,0.0004224,30]
[314106769,1707983451534,-6867.58187186,0.0004224,30]
[314106770,1707983451546,-252.20000005,0.0004224,30]
[314106771,1707983451558,-31376.91156889,0.0004224,30]
[314106772,1707983451569,-256.85596,0.0004224,30]
[314106773,1707983451581,-732520.25890252,0.0004224,30]
[314106774,1707983451593,-1188.03318693,0.0004224,30]
[314106775,1707983451605,-7937.15463982,0.0004224,30]
[314106776,1707983451617,-313.21706295,0.0004224,30]
[314106777,1707983451630,-910.4293859,0.0004224,30]
[314106778,1707983451650,-6677.84833281,0.0004224,30]
[314106779,1707983451662,-3690.71362024,0.0004224,30]
[314106780,1707983451674,-306.08426344,0.0004224,30]
[314106781,1707983451699,-382.51727014,0.00038156,2]
[314106782,1707983451712,-2117.48272986,0.00038156,2]
[314106783,1707983451722,-234.16699497,0.00040818,3]
[314106784,1707983451732,-2038.29917517,0.0004224,30]
[314106785,1707983451744,-25874.00000001,0.0004224,30]
[314106786,1707983451757,-13899.70000005,0.0004224,30]
[314106787,1707983451778,-6055.71977187,0.0004224,30]
[314106788,1707983451794,-93949.88693718,0.0004224,30]
[314106789,1707983451904,-824.70516459,0.0004224,30]
[314106790,1707983451916,-34925.62231775,0.0004224,30]
[314106791,1707983451934,-165.6801245,0.0004149,2]
[314106792,1707983451944,-6672.5329869,0.0004224,30]
[314106793,1707983470236,110237.45124977,0.00023,2]
[314106794,1707983549631,-2500.0,0.0002509,2]
[314106797,1707983657413,155.9802843,0.0002,2]
[314106800,1707984365374,-300.0,0.00023199,2]
[314106801,1707984365400,-150.0,0.00023199,2]
[314106802,1707984365428,-22637.239451,0.000232,2]
[314106803,1707984365456,-217.96215078,0.000247,2]
[314106804,1707984365486,-160.93113565,0.0002499,2]
[314106805,1707984365514,-2289.58832569,0.0002509,2]
[314106806,1707984365544,-150.0,0.00026,3]
[314106807,1707984365572,-2764.56252068,0.00026,2]
[314106818,1707984631903,-354.54,0.0002813,2]
[314106819,1707984631913,-151.10024855,0.0002813,2]
[314106820,1707984631923,-60.80451905,0.0002876,28]
[314106821,1707984631935,-512.28923907,0.0002876,28]
[314106824,1707984631960,-987.16241063,0.0002876,28]
[314106826,1707984631969,-4914.00898413,0.0002913,2]
[314106828,1707984631981,-48975.17335222,0.0002913,2]
[314106830,1707984631991,-2549.98906502,0.00029428,2]
[314106832,1707984632001,-1228.71653555,0.0003,2]
[314106833,1707984632011,-420.32,0.00033377,2]
[314106834,1707984632019,-296.54,0.00034141,5]
[314106835,1707984632029,-166.57523886,0.00034146,5]
[314106836,1707984632038,-150.26,0.00034146,5]
[314106837,1707984632048,-12932.39130459,0.00034151,10]
[314106838,1707984632057,-307.9,0.00034151,2]
[314106839,1707984632066,-352.78,0.00034151,2]
[314106840,1707984632075,-8545.52211722,0.00034177,10]
[314106841,1707984632087,-457.70756944,0.00034203,10]
[314106842,1707984632096,-449.06,0.00035177,2]
[314106843,1707984632106,-1016.97,0.00035212,2]
[314106844,1707984632115,-500.0,0.00035239,2]
[314106845,1707984632124,-1722.33,0.00035268,2]
[314106846,1707984632133,-250.0,0.00035269,111]
[314106847,1707984632143,-1402.1,0.0003532,2]
[314106848,1707984632153,-2705.0,0.00035446,2]
[314106849,1707984632162,-162.72,0.00035468,2]
[314106850,1707984632171,-1722.33,0.00035472,2]
[314106851,1707984632180,-250.0,0.00035477,2]
[314106852,1707984632190,-150.0,0.00035517,2]
[314106853,1707984632199,-152.85,0.00035518,2]
[314106854,1707984632208,-420.32,0.00035641,2]
[314106855,1707984632218,-955.38301149,0.00035675,3]
[314106856,1707984632226,-1722.33,0.00035676,2]
[314106857,1707984632236,-166.12,0.00035688,2]
[314106858,1707984632245,-2000.0,0.00035693,2]
[314106859,1707984632256,-1969.09,0.00035717,2]
[314106860,1707984632265,-250.0,0.00035742,2]
[314106861,1707984632274,-751.74,0.00035841,2]
[314106862,1707984632284,-2012.47,0.00035867,2]
[314106863,1707984632293,-1722.33,0.00035879,2]
[314106864,1707984632302,-13390.0,0.00036,3]
[314106865,1707984632312,-1722.33,0.00036083,2]
[314106866,1707984632322,-1722.33,0.00036287,2]
[314106867,1707984632331,-1722.33,0.00036491,2]
[314106868,1707984632340,-161.78,0.00036613,2]
[314106869,1707984632350,-1722.33,0.00036694,2]
[314106870,1707984632359,-166.16,0.00036879,2]
[314106871,1707984632369,-1722.33,0.00036898,2]
[314106872,1707984632378,-550.94,0.00037011,2]
[314106873,1707984632387,-1722.33,0.00037102,2]
[314106874,1707984632397,-285.15,0.00037202,2]
[314106875,1707984632407,-152.44,0.00037261,2]
[314106876,1707984632418,-751.74,0.00037484,2]
[314106877,1707984632427,-250.13,0.000379,2]
[314106878,1707984632437,-420.32,0.00037905,2]
[314106879,1707984632446,-358.58012151,0.00037955,2]
[314106880,1707984632455,-913.71956242,0.00037955,2]
[314106881,1707984632464,-12439.67,0.00038,2]
[314106882,1707984632474,-4411.4539,0.00038055,2]
[314106883,1707984632483,-783.2047,0.00038055,2]
[314106884,1707984632493,-2965.2098,0.00038055,2]
[314106885,1707984632503,-2869.1009,0.00038055,2]
[314106886,1707984632513,-1789.2257,0.00038055,2]
[314106887,1707984632522,-312.2975,0.00038055,2]
[314106888,1707984632531,-1000.0,0.00038055,2]
[314106889,1707984632540,-36420.7138,0.00038055,7]
[314106890,1707984632549,-1341.2263,0.00038055,2]
[314106891,1707984632558,-186.58,0.00038087,2]
[314106892,1707984632568,-93059.0199,0.00038155,2]
[314106893,1707984632578,-3462.5579,0.00038156,2]
[314106894,1707984632588,-1796.72,0.00038156,5]
[314106895,1707984632597,-584.84264899,0.00038256,8]
[314106896,1707984632608,-519.90125621,0.00038356,7]
[314106897,1707984632617,-500.0,0.00038356,7]
[314106898,1707984632626,-498.15545369,0.00038356,7]
[314106899,1707984632636,-500.0,0.00038356,7]
[314106900,1707984632645,-500.0,0.00038356,7]
[314106901,1707984632655,-500.0,0.00038356,7]
[314106902,1707984632664,-500.0,0.00038356,7]
[314106903,1707984632673,-500.0,0.00038356,7]
[314106904,1707984632683,-500.0,0.00038356,7]
[314106905,1707984632692,-1081.99,0.00038356,7]
[314106906,1707984632701,-500.0,0.00038356,7]
[314106907,1707984632710,-811.23,0.00038356,7]
[314106908,1707984632720,-1218.85,0.00038356,7]
[314106909,1707984632729,-500.0,0.00038356,7]
[314106910,1707984632738,-500.0,0.00038356,7]
[314106911,1707984632748,-356.49598932,0.00038356,7]
[314106912,1707984632758,-500.0,0.00038356,7]
[314106913,1707984632767,-522.6,0.00038356,7]
[314106914,1707984632776,-500.0,0.00038356,7]
[314106915,1707984632786,-500.0,0.00038356,7]
[314106916,1707984632795,-500.0,0.00038356,7]
[314106917,1707984632804,-351.2391,0.00038356,7]
[314106918,1707984632814,-555.9,0.00038356,7]
[314106919,1707984632823,-500.0,0.00038356,7]
[314106920,1707984632832,-500.0,0.00038356,7]
[314106921,1707984632841,-500.0,0.00038356,7]
[314106922,1707984632850,-500.0,0.00038356,7]
[314106923,1707984632859,-500.0,0.00038356,7]
[314106924,1707984632868,-500.0,0.00038356,7]
[314106925,1707984632877,-150.0,0.00038377,120]
[314106926,1707984632887,-1131.45592643,0.000384,7]
[314106927,1707984632907,-151.62214076,0.00038498,21]
[314106928,1707984632918,-152.44,0.00038503,2]
[314106929,1707984632927,-358.58012148,0.0003857,2]
[314106930,1707984632937,-913.71956238,0.0003857,2]
[314106931,1707984632946,-500.0,0.0003863,7]
[314106932,1707984632956,-519.68785061,0.0003863,7]
[314106933,1707984632965,-1081.99,0.0003863,7]
[314106934,1707984632977,-500.0,0.0003863,7]
[314106935,1707984632986,-811.23,0.0003863,7]
[314106936,1707984632995,-1218.85,0.0003863,7]
[314106937,1707984633005,-556.9923,0.0003863,7]
[314106938,1707984633015,-164.61739386,0.0003863,7]
[314106939,1707984633024,-500.0,0.0003863,7]
[314106940,1707984633033,-500.0,0.0003863,7]
[314106941,1707984633042,-555.9,0.0003863,7]
[314106942,1707984633224,-500.0,0.0003863,7]
[314106943,1707984633234,-467.30618638,0.0003863,7]
[314106944,1707984633243,-500.0,0.0003863,7]
[314106945,1707984633252,-500.0,0.0003863,7]
[314106946,1707984633263,-440.4191,0.00038654,2]
[314106947,1707984633272,-213.11163389,0.00038657,11]
[314106948,1707984633281,-150.978,0.00038698,20]
[314106949,1707984633291,-12230.90915644,0.0003876,2]
[314106950,1707984633300,-526.97854074,0.0003876,3]
[314106951,1707984633309,-15655.29108938,0.0003876,2]
[314106952,1707984633318,-1611.47124833,0.0003876,2]
[314106953,1707984633328,-1378.6670059,0.0003876,30]
[314106954,1707984633337,-249.07660339,0.0003876,15]
[314106955,1707984633347,-1508.12399048,0.0003876,4]
[314106956,1707984633356,-526.54171103,0.0003876,2]
[314106957,1707984633366,-10467.83248196,0.0003876,10]
[314106958,1707984633379,-2215.44907763,0.0003876,2]
[314106959,1707984633389,-1739.87577898,0.0003876,120]
[314106960,1707984633403,-32140.05200838,0.0003876,10]
[314106961,1707984633412,-570.31596037,0.0003876,2]
[314106962,1707984633421,-1137.37989133,0.0003876,2]
[314106963,1707984633431,-151.021518,0.00038798,19]
[314106964,1707984633441,-155.0,0.0003888,2]
[314106965,1707984633450,-500.0,0.0003888,2]
[314106966,1707984633459,-1081.99,0.00038904,7]
[314106967,1707984633469,-500.0,0.00038904,7]
[314106968,1707984633478,-811.23,0.00038904,7]
[314106969,1707984633489,-1218.85,0.00038904,7]
[314106970,1707984633499,-585.46,0.00038904,7]
[314106971,1707984633508,-500.0,0.00038904,7]
[314106972,1707984633517,-555.9,0.00038904,7]
[314106973,1707984633529,-500.0,0.00038904,7]
[314106974,1707984633538,-440.59684786,0.00038904,7]
[314106975,1707984633547,-584.84264893,0.00038919,9]
[314106976,1707984633556,-162.72,0.00039015,2]
[314106977,1707984633565,-161.78,0.00039053,2]